[Event "Titled Tuesday Blitz April 4 Late 2023"]
[White "Tsvetkov, Andrey"]
[Black "Grigoriants, Sergey"]
[WhiteFideId "34139360"]
[BlackFideId "4130804"]
[WhiteElo "2319"]
[BlackElo "2502"]
[Result "0-1"]
[Round "08"]
[TimeControl "180+2"]
[Date "2023.04.04"]
[WhiteClock "0:00:03"]
[BlackClock "0:00:13"]

1. d4 {[%clk 0:02:55]}  d5 {[%clk 0:02:57]} 2. c4 {[%clk 0:02:55]}  c6 {[%clk 0:02:57]} 3. Nf3 {[%clk 0:02:55]}  Nf6 {[%clk 0:02:58]} 4. g3 {[%clk 0:02:56]}  Bg4 {[%clk 0:02:57]} 5. Ne5 {[%clk 0:02:55]}  Bf5 {[%clk 0:02:53]} 6. cxd5 {[%clk 0:02:55]}  cxd5 {[%clk 0:02:48]} 7. Nc3 {[%clk 0:02:55]}  Nc6 {[%clk 0:02:47]} 8. f3 {[%clk 0:02:55]}  Rc8 {[%clk 0:02:07]} 9. g4 {[%clk 0:02:52]}  Be6 {[%clk 0:02:04]} 10. g5 {[%clk 0:02:21]}  Nxe5 {[%clk 0:01:55]} 11. dxe5 {[%clk 0:01:51]}  d4 {[%clk 0:01:43]} 12. Qa4+ {[%clk 0:01:13]}  Qd7 {[%clk 0:01:42]} 13. e3 {[%clk 0:01:09]}  Qxa4 {[%clk 0:01:09]} 14. Nxa4 {[%clk 0:01:10]}  Nd5 {[%clk 0:01:09]} 15. Bb5+ {[%clk 0:01:00]}  Bd7 {[%clk 0:01:01]} 16. Bxd7+ {[%clk 0:01:00]}  Kxd7 {[%clk 0:01:02]} 17. exd4 {[%clk 0:01:01]}  e6 {[%clk 0:01:03]} 18. Bd2 {[%clk 0:00:57]}  Rc4 {[%clk 0:00:56]} 19. Nc3 {[%clk 0:00:48]}  Rxd4 {[%clk 0:00:56]} 20. O-O-O {[%clk 0:00:47]}  Nxc3 {[%clk 0:00:38]} 21. Bxc3 {[%clk 0:00:44]}  Rxd1+ {[%clk 0:00:38]} 22. Rxd1+ {[%clk 0:00:45]}  Kc8 {[%clk 0:00:38]} 23. Bd4 {[%clk 0:00:28]}  b6 {[%clk 0:00:38]} 24. Be3 {[%clk 0:00:26]}  Be7 {[%clk 0:00:38]} 25. Kd2 {[%clk 0:00:23]}  Rd8+ {[%clk 0:00:36]} 26. Ke2 {[%clk 0:00:20]}  Rxd1 {[%clk 0:00:37]} 27. Kxd1 {[%clk 0:00:21]}  Kd7 {[%clk 0:00:37]} 28. Kc2 {[%clk 0:00:14]}  Kc6 {[%clk 0:00:37]} 29. Kd3 {[%clk 0:00:15]}  Kd5 {[%clk 0:00:38]} 30. f4 {[%clk 0:00:15]}  Bc5 {[%clk 0:00:31]} 31. Bd2 {[%clk 0:00:15]}  b5 {[%clk 0:00:30]} 32. h4 {[%clk 0:00:14]}  g6 {[%clk 0:00:30]} 33. Be1 {[%clk 0:00:12]}  a6 {[%clk 0:00:28]} 34. b4 {[%clk 0:00:12]}  Bf8 {[%clk 0:00:25]} 35. a3 {[%clk 0:00:12]}  h5 {[%clk 0:00:25]} 36. Bd2 {[%clk 0:00:11]}  Be7 {[%clk 0:00:23]} 37. Be1 {[%clk 0:00:11]}  Bd8 {[%clk 0:00:21]} 38. Bd2 {[%clk 0:00:11]}  Bb6 {[%clk 0:00:21]} 39. Be1 {[%clk 0:00:09]}  Bd4 {[%clk 0:00:21]} 40. Bg3 {[%clk 0:00:03]}  Bb2 {[%clk 0:00:20]} 41. Kc2 {[%clk 0:00:02]}  Bxa3 {[%clk 0:00:20]} 42. Kb3 {[%clk 0:00:02]}  Bc1 {[%clk 0:00:20]} 43. Kc2 {[%clk 0:00:03]}  Be3 {[%clk 0:00:20]} 44. Kd3 {[%clk 0:00:04]}  Bd4 {[%clk 0:00:18]} 45. Be1 {[%clk 0:00:05]}  Bb6 {[%clk 0:00:18]} 46. Bg3 {[%clk 0:00:03]}  a5 {[%clk 0:00:14]} 47. bxa5 {[%clk 0:00:04]}  Bxa5 {[%clk 0:00:15]} 48. Bf2 {[%clk 0:00:05]}  Bb4 {[%clk 0:00:13]} 49. Bd4 {[%clk 0:00:04]}  Be1 {[%clk 0:00:13]} 50. Bb2 {[%clk 0:00:03]}  Bxh4 {[%clk 0:00:13]} 0-1


[Site "https://www.chess.com"]

[Event "Titled Tuesday Blitz April 4 Late 2023"]
[White "Hirneise, Jens"]
[Black "Melkumyan, Hrant"]
[WhiteFideId "24614734"]
[BlackFideId "13302485"]
[WhiteElo "2345"]
[BlackElo "2604"]
[Result "1/2-1/2"]
[Round "08"]
[TimeControl "180+2"]
[Date "2023.04.04"]
[WhiteClock "0:00:11"]
[BlackClock "0:00:05"]

1. c4 {[%clk 0:03:00]}  e5 {[%clk 0:02:58]} 2. Nc3 {[%clk 0:03:01]}  Bb4 {[%clk 0:02:58]} 3. Nd5 {[%clk 0:02:59]}  Be7 {[%clk 0:02:58]} 4. d4 {[%clk 0:02:58]}  d6 {[%clk 0:02:58]} 5. Nxe7 {[%clk 0:02:54]}  Qxe7 {[%clk 0:02:58]} 6. dxe5 {[%clk 0:02:45]}  dxe5 {[%clk 0:02:57]} 7. g3 {[%clk 0:02:44]}  Bd7 {[%clk 0:02:50]} 8. Bg2 {[%clk 0:02:41]}  Bc6 {[%clk 0:02:50]} 9. Nf3 {[%clk 0:02:34]}  h6 {[%clk 0:02:50]} 10. O-O {[%clk 0:02:32]}  Nf6 {[%clk 0:02:50]} 11. Qe1 {[%clk 0:02:16]}  a5 {[%clk 0:02:46]} 12. Qc3 {[%clk 0:02:12]}  Nbd7 {[%clk 0:02:46]} 13. b3 {[%clk 0:02:12]}  O-O {[%clk 0:02:46]} 14. Bb2 {[%clk 0:02:11]}  Rfe8 {[%clk 0:02:45]} 15. Rfd1 {[%clk 0:02:09]}  Ne4 {[%clk 0:02:41]} 16. Qc2 {[%clk 0:02:02]}  Nec5 {[%clk 0:02:41]} 17. Nh4 {[%clk 0:01:57]}  Bxg2 {[%clk 0:02:38]} 18. Nxg2 {[%clk 0:01:55]}  Ne6 {[%clk 0:02:28]} 19. Ne3 {[%clk 0:01:46]}  f6 {[%clk 0:02:25]} 20. Nf5 {[%clk 0:01:34]}  Qf7 {[%clk 0:02:25]} 21. Rd2 {[%clk 0:01:25]}  Ndf8 {[%clk 0:02:25]} 22. Rad1 {[%clk 0:01:23]}  Red8 {[%clk 0:02:17]} 23. h4 {[%clk 0:01:09]}  Rxd2 {[%clk 0:02:14]} 24. Rxd2 {[%clk 0:01:09]}  c5 {[%clk 0:02:11]} 25. e3 {[%clk 0:00:59]}  Rd8 {[%clk 0:02:11]} 26. Rxd8 {[%clk 0:00:53]}  Nxd8 {[%clk 0:02:11]} 27. Qe4 {[%clk 0:00:54]}  Qd7 {[%clk 0:02:06]} 28. Kg2 {[%clk 0:00:44]}  b6 {[%clk 0:02:02]} 29. Qg4 {[%clk 0:00:33]}  Kh7 {[%clk 0:01:58]} 30. h5 {[%clk 0:00:32]}  Nde6 {[%clk 0:01:55]} 31. Qe4 {[%clk 0:00:19]}  Ng5 {[%clk 0:01:53]} 32. Qc2 {[%clk 0:00:19]}  e4 {[%clk 0:01:43]} 33. g4 {[%clk 0:00:20]}  Nfe6 {[%clk 0:01:43]} 34. Ng3 {[%clk 0:00:19]}  Qb7 {[%clk 0:01:39]} 35. Qd1 {[%clk 0:00:19]}  Nf3 {[%clk 0:01:37]} 36. Qd5 {[%clk 0:00:15]}  Qxd5 {[%clk 0:01:24]} 37. cxd5 {[%clk 0:00:16]}  Neg5 {[%clk 0:01:25]} 38. Nf5 {[%clk 0:00:14]}  Ne1+ {[%clk 0:01:18]} 39. Kf1 {[%clk 0:00:14]}  Nd3 {[%clk 0:01:19]} 40. Bc3 {[%clk 0:00:14]}  Kg8 {[%clk 0:01:17]} 41. Ne7+ {[%clk 0:00:13]}  Kf7 {[%clk 0:01:16]} 42. Nc8 {[%clk 0:00:14]}  Nf3 {[%clk 0:01:07]} 43. Nxb6 {[%clk 0:00:13]}  Nh2+ {[%clk 0:01:07]} 44. Kg2 {[%clk 0:00:13]}  Nxg4 {[%clk 0:01:08]} 45. Bxa5 {[%clk 0:00:12]}  Ngxf2 {[%clk 0:01:08]} 46. d6 {[%clk 0:00:12]}  Ng4 {[%clk 0:01:06]} 47. d7 {[%clk 0:00:12]}  Ke7 {[%clk 0:01:03]} 48. Bd2 {[%clk 0:00:11]}  Nge5 {[%clk 0:00:59]} 49. a4 {[%clk 0:00:10]}  Nxd7 {[%clk 0:00:59]} 50. Nxd7 {[%clk 0:00:08]}  Kxd7 {[%clk 0:01:00]} 51. a5 {[%clk 0:00:08]}  Kc6 {[%clk 0:01:01]} 52. Kg3 {[%clk 0:00:09]}  Kb5 {[%clk 0:00:19]} 53. Kg4 {[%clk 0:00:09]}  Ne5+ {[%clk 0:00:13]} 54. Kf5 {[%clk 0:00:09]}  c4 {[%clk 0:00:06]} 55. bxc4+ {[%clk 0:00:08]}  Nxc4 {[%clk 0:00:07]} 56. a6 {[%clk 0:00:06]}  Kxa6 {[%clk 0:00:06]} 57. Bc3 {[%clk 0:00:06]}  Nxe3+ {[%clk 0:00:06]} 58. Kxe4 {[%clk 0:00:06]}  Nd1 {[%clk 0:00:02]} 59. Bd4 {[%clk 0:00:06]}  Kb5 {[%clk 0:00:02]} 60. Kf5 {[%clk 0:00:07]}  Kc4 {[%clk 0:00:03]} 61. Bxf6 {[%clk 0:00:07]}  Ne3+ {[%clk 0:00:03]} 62. Kg6 {[%clk 0:00:05]}  gxf6 {[%clk 0:00:04]} 63. Kxh6 {[%clk 0:00:05]}  Kd5 {[%clk 0:00:02]} 64. Kg6 {[%clk 0:00:05]}  Ng4 {[%clk 0:00:01]} 65. Kf5 {[%clk 0:00:05]}  Nh6+ {[%clk 0:00:01]} 66. Kxf6 {[%clk 0:00:06]}  Kd6 {[%clk 0:00:02]} 67. Kg6 {[%clk 0:00:07]}  Ng4 {[%clk 0:00:02]} 68. Kg5 {[%clk 0:00:08]}  Ne5 {[%clk 0:00:02]} 69. Kf6 {[%clk 0:00:08]}  Ng4+ {[%clk 0:00:03]} 70. Kg7 {[%clk 0:00:08]}  Ke6 {[%clk 0:00:03]} 71. Kg6 {[%clk 0:00:09]}  Ne5+ {[%clk 0:00:02]} 72. Kg5 {[%clk 0:00:10]}  Nf7+ {[%clk 0:00:03]} 73. Kg6 {[%clk 0:00:10]}  Ne5+ {[%clk 0:00:04]} 74. Kg7 {[%clk 0:00:11]}  Nf7 {[%clk 0:00:04]} 75. Kg6 {[%clk 0:00:11]}  Ne5+ {[%clk 0:00:05]} 1/2-1/2


[Site "https://www.chess.com"]

[Event "Titled Tuesday Blitz April 4 Late 2023"]
[White "Vakhlamov, Igor L."]
[Black "TimGrutter03"]
[WhiteFideId "24126748"]
[WhiteElo "2400"]
[BlackElo "2592"]
[Result "1-0"]
[Round "08"]
[TimeControl "180+2"]
[Date "2023.04.04"]
[WhiteClock "0:00:15"]
[BlackClock "0:00:02"]

1. e4 {[%clk 0:02:59]}  g6 {[%clk 0:03:00]} 2. d4 {[%clk 0:02:59]}  Bg7 {[%clk 0:03:00]} 3. Nf3 {[%clk 0:03:00]}  d6 {[%clk 0:03:01]} 4. Bc4 {[%clk 0:03:01]}  c6 {[%clk 0:03:01]} 5. Bb3 {[%clk 0:02:59]}  a5 {[%clk 0:02:58]} 6. a4 {[%clk 0:02:55]}  Nf6 {[%clk 0:02:56]} 7. Nbd2 {[%clk 0:02:53]}  O-O {[%clk 0:02:55]} 8. O-O {[%clk 0:02:52]}  Nbd7 {[%clk 0:02:44]} 9. Re1 {[%clk 0:02:51]}  e5 {[%clk 0:02:44]} 10. Nc4 {[%clk 0:02:50]}  Qc7 {[%clk 0:02:39]} 11. c3 {[%clk 0:02:41]}  b5 {[%clk 0:02:20]} 12. dxe5 {[%clk 0:02:20]}  dxe5 {[%clk 0:02:05]} 13. Nd6 {[%clk 0:02:19]}  Nc5 {[%clk 0:02:00]} 14. Nxc8 {[%clk 0:02:09]}  Raxc8 {[%clk 0:01:55]} 15. axb5 {[%clk 0:02:05]}  cxb5 {[%clk 0:01:51]} 16. Bc2 {[%clk 0:02:01]}  Rfd8 {[%clk 0:01:47]} 17. Qe2 {[%clk 0:02:02]}  Qb6 {[%clk 0:01:43]} 18. Be3 {[%clk 0:01:58]}  a4 {[%clk 0:01:43]} 19. Nxe5 {[%clk 0:01:35]}  Qb8 {[%clk 0:01:34]} 20. Bd4 {[%clk 0:01:26]}  Ne6 {[%clk 0:01:27]} 21. Nf3 {[%clk 0:01:18]}  Nxd4 {[%clk 0:01:21]} 22. Nxd4 {[%clk 0:01:19]}  b4 {[%clk 0:01:17]} 23. Bxa4 {[%clk 0:01:18]}  bxc3 {[%clk 0:01:15]} 24. bxc3 {[%clk 0:01:19]}  Qc7 {[%clk 0:00:44]} 25. Rac1 {[%clk 0:01:17]}  Ra8 {[%clk 0:00:39]} 26. Bb3 {[%clk 0:01:17]}  Re8 {[%clk 0:00:37]} 27. Qd3 {[%clk 0:01:06]}  Rad8 {[%clk 0:00:26]} 28. h3 {[%clk 0:01:06]}  Nd7 {[%clk 0:00:25]} 29. Nb5 {[%clk 0:01:02]}  Qb8 {[%clk 0:00:25]} 30. Bd5 {[%clk 0:00:53]}  Nc5 {[%clk 0:00:15]} 31. Qc4 {[%clk 0:00:49]}  Ne6 {[%clk 0:00:12]} 32. Nd4 {[%clk 0:00:49]}  Bxd4 {[%clk 0:00:11]} 33. cxd4 {[%clk 0:00:50]}  Rc8 {[%clk 0:00:10]} 34. Qa4 {[%clk 0:00:43]}  Rxc1 {[%clk 0:00:09]} 35. Rxc1 {[%clk 0:00:44]}  Rc8 {[%clk 0:00:07]} 36. Rd1 {[%clk 0:00:24]}  Nf4 {[%clk 0:00:07]} 37. Qb3 {[%clk 0:00:21]}  Qc7 {[%clk 0:00:05]} 38. Kh1 {[%clk 0:00:12]}  Rd8 {[%clk 0:00:05]} 39. Bc4 {[%clk 0:00:12]}  Rb8 {[%clk 0:00:04]} 40. Qa2 {[%clk 0:00:10]}  Rc8 {[%clk 0:00:03]} 41. Bf1 {[%clk 0:00:10]}  Rd8 {[%clk 0:00:02]} 42. Kg1 {[%clk 0:00:09]}  Ne6 {[%clk 0:00:01]} 43. d5 {[%clk 0:00:09]}  Nc5 {[%clk 0:00:02]} 44. Rc1 {[%clk 0:00:09]}  Qd6 {[%clk 0:00:02]} 45. f3 {[%clk 0:00:09]}  Nd7 {[%clk 0:00:02]} 46. Qf2 {[%clk 0:00:10]}  Ne5 {[%clk 0:00:02]} 47. Qc5 {[%clk 0:00:10]}  Qd7 {[%clk 0:00:02]} 48. Qc7 {[%clk 0:00:11]}  Qe8 {[%clk 0:00:02]} 49. Rb1 {[%clk 0:00:10]}  Rc8 {[%clk 0:00:01]} 50. Qb7 {[%clk 0:00:09]}  Qd8 {[%clk 0:00:02]} 51. Qb6 {[%clk 0:00:10]}  Nd7 {[%clk 0:00:01]} 52. Qxd8+ {[%clk 0:00:10]}  Rxd8 {[%clk 0:00:02]} 53. Rc1 {[%clk 0:00:10]}  Kf8 {[%clk 0:00:02]} 54. Kf2 {[%clk 0:00:11]}  Ke7 {[%clk 0:00:02]} 55. f4 {[%clk 0:00:11]}  Ra8 {[%clk 0:00:02]} 56. Rc2 {[%clk 0:00:11]}  Ra4 {[%clk 0:00:02]} 57. Bd3 {[%clk 0:00:12]}  Rd4 {[%clk 0:00:02]} 58. Ke3 {[%clk 0:00:12]}  Ra4 {[%clk 0:00:02]} 59. g4 {[%clk 0:00:13]}  f6 {[%clk 0:00:02]} 60. Rc7 {[%clk 0:00:13]}  Ra3 {[%clk 0:00:03]} 61. Kd4 {[%clk 0:00:13]}  Kd6 {[%clk 0:00:03]} 62. Rc6+ {[%clk 0:00:13]}  Ke7 {[%clk 0:00:03]} 63. Re6+ {[%clk 0:00:14]}  Kf7 {[%clk 0:00:04]} 64. h4 {[%clk 0:00:14]}  h6 {[%clk 0:00:03]} 65. h5 {[%clk 0:00:13]}  gxh5 {[%clk 0:00:03]} 66. gxh5 {[%clk 0:00:14]}  Ra4+ {[%clk 0:00:03]} 67. Ke3 {[%clk 0:00:14]}  Ra3 {[%clk 0:00:04]} 68. Rc6 {[%clk 0:00:14]}  Rb3 {[%clk 0:00:02]} 69. Kd4 {[%clk 0:00:14]}  Rb4+ {[%clk 0:00:02]} 70. Bc4 {[%clk 0:00:14]}  Rb1 {[%clk 0:00:03]} 71. e5 {[%clk 0:00:13]}  fxe5+ {[%clk 0:00:02]} 72. fxe5 {[%clk 0:00:14]}  Rd1+ {[%clk 0:00:03]} 73. Bd3 {[%clk 0:00:13]}  Nxe5 {[%clk 0:00:02]} 74. Kxe5 {[%clk 0:00:14]}  Rxd3 {[%clk 0:00:02]} 75. Rxh6 {[%clk 0:00:15]} 1-0


[Site "https://www.chess.com"]

[Event "Titled Tuesday Blitz April 4 Late 2023"]
[White "Przybylski, Wojciech"]
[Black "Rustemov, Alexander"]
[WhiteFideId "1117599"]
[BlackFideId "4119002"]
[WhiteElo "2222"]
[BlackElo "2851"]
[Result "1/2-1/2"]
[Round "08"]
[TimeControl "180+2"]
[Date "2023.04.04"]
[WhiteClock "0:00:04"]
[BlackClock "0:00:38"]

1. e4 {[%clk 0:03:00]}  e6 {[%clk 0:03:00]} 2. d4 {[%clk 0:03:00]}  d5 {[%clk 0:03:00]} 3. Nc3 {[%clk 0:03:00]}  dxe4 {[%clk 0:03:00]} 4. Nxe4 {[%clk 0:03:00]}  Bd7 {[%clk 0:03:00]} 5. Nf3 {[%clk 0:02:56]}  Bc6 {[%clk 0:03:00]} 6. Bd3 {[%clk 0:02:56]}  Nd7 {[%clk 0:03:01]} 7. O-O {[%clk 0:02:55]}  Ngf6 {[%clk 0:03:01]} 8. Ned2 {[%clk 0:02:55]}  Be7 {[%clk 0:03:01]} 9. Re1 {[%clk 0:02:55]}  O-O {[%clk 0:03:01]} 10. Nc4 {[%clk 0:02:55]}  Bd5 {[%clk 0:03:01]} 11. Nce5 {[%clk 0:02:53]}  c5 {[%clk 0:03:01]} 12. Be3 {[%clk 0:02:49]}  Rc8 {[%clk 0:02:57]} 13. c3 {[%clk 0:02:48]}  cxd4 {[%clk 0:02:55]} 14. Bxd4 {[%clk 0:02:47]}  Bc5 {[%clk 0:02:52]} 15. Bb5 {[%clk 0:02:32]}  Nxe5 {[%clk 0:02:34]} 16. Nxe5 {[%clk 0:02:28]}  Qb6 {[%clk 0:02:31]} 17. Bxc5 {[%clk 0:01:26]}  Rxc5 {[%clk 0:02:23]} 18. Bf1 {[%clk 0:01:23]}  Qxb2 {[%clk 0:02:19]} 19. Nd3 {[%clk 0:01:22]}  Qa3 {[%clk 0:02:13]} 20. Nxc5 {[%clk 0:01:22]}  Qxc5 {[%clk 0:02:14]} 21. Qd4 {[%clk 0:01:19]}  Rc8 {[%clk 0:02:08]} 22. Qxc5 {[%clk 0:01:08]}  Rxc5 {[%clk 0:02:09]} 23. c4 {[%clk 0:00:58]}  Bc6 {[%clk 0:02:08]} 24. Red1 {[%clk 0:00:55]}  Kf8 {[%clk 0:02:08]} 25. Rd8+ {[%clk 0:00:48]}  Ke7 {[%clk 0:02:08]} 26. Ra8 {[%clk 0:00:48]}  Ra5 {[%clk 0:02:04]} 27. f3 {[%clk 0:00:37]}  Ra3 {[%clk 0:01:59]} 28. Rh8 {[%clk 0:00:31]}  h5 {[%clk 0:01:55]} 29. Kf2 {[%clk 0:00:28]}  g6 {[%clk 0:01:54]} 30. h4 {[%clk 0:00:24]}  Nd7 {[%clk 0:01:53]} 31. Rc8 {[%clk 0:00:22]}  Nc5 {[%clk 0:01:51]} 32. Kg3 {[%clk 0:00:19]}  Nb3 {[%clk 0:01:32]} 33. Rd1 {[%clk 0:00:14]}  Rxa2 {[%clk 0:01:30]} 34. Kf4 {[%clk 0:00:14]}  Kf6 {[%clk 0:01:29]} 35. Rc7 {[%clk 0:00:13]}  Nc5 {[%clk 0:01:21]} 36. Kg3 {[%clk 0:00:11]}  a5 {[%clk 0:01:18]} 37. Bd3 {[%clk 0:00:09]}  a4 {[%clk 0:01:17]} 38. Be4 {[%clk 0:00:05]}  Nxe4+ {[%clk 0:01:14]} 39. fxe4 {[%clk 0:00:04]}  Bxe4 {[%clk 0:01:14]} 40. Rf1+ {[%clk 0:00:04]}  Bf5 {[%clk 0:01:13]} 41. Rxb7 {[%clk 0:00:04]}  Rc2 {[%clk 0:01:11]} 42. Rb4 {[%clk 0:00:03]}  a3 {[%clk 0:01:11]} 43. Ra4 {[%clk 0:00:03]}  Rc3+ {[%clk 0:01:05]} 44. Kh2 {[%clk 0:00:03]}  e5 {[%clk 0:01:02]} 45. Ra1 {[%clk 0:00:03]}  Be6 {[%clk 0:00:58]} 46. R1xa3 {[%clk 0:00:03]}  Rc2 {[%clk 0:00:54]} 47. Rf3+ {[%clk 0:00:03]}  Kg7 {[%clk 0:00:54]} 48. Re3 {[%clk 0:00:03]}  Kf6 {[%clk 0:00:48]} 49. Rf3+ {[%clk 0:00:03]}  Ke7 {[%clk 0:00:48]} 50. Re3 {[%clk 0:00:03]}  Kf6 {[%clk 0:00:38]} 51. Rf3+ {[%clk 0:00:04]} 1/2-1/2


[Site "https://www.chess.com"]

[Event "Titled Tuesday Blitz April 4 Late 2023"]
[White "Szpar, Milosz"]
[Black "Srinath, Rao S.V."]
[WhiteFideId "1184989"]
[BlackFideId "5028876"]
[WhiteElo "2436"]
[BlackElo "2196"]
[Result "1-0"]
[Round "08"]
[TimeControl "180+2"]
[Date "2023.04.04"]
[WhiteClock "0:00:13"]
[BlackClock "0:00:20"]

1. e4 {[%clk 0:02:57]}  e6 {[%clk 0:02:58]} 2. d4 {[%clk 0:02:56]}  d5 {[%clk 0:02:59]} 3. Nc3 {[%clk 0:02:57]}  Nf6 {[%clk 0:02:58]} 4. Bg5 {[%clk 0:02:56]}  dxe4 {[%clk 0:02:57]} 5. Nxe4 {[%clk 0:02:56]}  Be7 {[%clk 0:02:57]} 6. Bxf6 {[%clk 0:02:56]}  Bxf6 {[%clk 0:02:58]} 7. Nf3 {[%clk 0:02:54]}  Bd7 {[%clk 0:02:54]} 8. Bd3 {[%clk 0:02:52]}  Bc6 {[%clk 0:02:54]} 9. c3 {[%clk 0:02:49]}  Nd7 {[%clk 0:02:52]} 10. Qe2 {[%clk 0:02:47]}  O-O {[%clk 0:02:51]} 11. h4 {[%clk 0:02:47]}  h6 {[%clk 0:02:47]} 12. g4 {[%clk 0:02:46]}  g6 {[%clk 0:02:31]} 13. g5 {[%clk 0:02:38]}  hxg5 {[%clk 0:02:31]} 14. hxg5 {[%clk 0:02:26]}  Bg7 {[%clk 0:02:16]} 15. O-O-O {[%clk 0:02:24]}  Qe7 {[%clk 0:02:07]} 16. Bc2 {[%clk 0:01:51]}  b5 {[%clk 0:02:00]} 17. Qf1 {[%clk 0:01:23]}  Rfb8 {[%clk 0:01:50]} 18. Qh3 {[%clk 0:01:19]}  b4 {[%clk 0:01:50]} 19. c4 {[%clk 0:01:16]}  a5 {[%clk 0:01:37]} 20. d5 {[%clk 0:01:13]}  exd5 {[%clk 0:01:36]} 21. cxd5 {[%clk 0:01:14]}  Bb5 {[%clk 0:01:33]} 22. Qh7+ {[%clk 0:01:10]}  Kf8 {[%clk 0:01:33]} 23. Rhe1 {[%clk 0:01:06]}  Ne5 {[%clk 0:01:10]} 24. Nf6 {[%clk 0:00:54]}  Bxf6 {[%clk 0:01:02]} 25. gxf6 {[%clk 0:00:55]}  Qxf6 {[%clk 0:01:02]} 26. Nxe5 {[%clk 0:00:55]}  Re8 {[%clk 0:00:52]} 27. Bxg6 {[%clk 0:00:46]}  Rxe5 {[%clk 0:00:24]} 28. Rxe5 {[%clk 0:00:46]}  fxg6 {[%clk 0:00:24]} 29. Qh6+ {[%clk 0:00:34]}  Kf7 {[%clk 0:00:20]} 30. Rde1 {[%clk 0:00:32]}  Re8 {[%clk 0:00:18]} 31. Qh7+ {[%clk 0:00:29]}  Kf8 {[%clk 0:00:18]} 32. Qh6+ {[%clk 0:00:19]}  Kf7 {[%clk 0:00:18]} 33. Rxe8 {[%clk 0:00:20]}  Bxe8 {[%clk 0:00:19]} 34. Re6 {[%clk 0:00:13]}  Qd4 {[%clk 0:00:19]} 35. Qh7+ {[%clk 0:00:11]}  Kf8 {[%clk 0:00:19]} 36. Qe7+ {[%clk 0:00:12]}  Kg8 {[%clk 0:00:19]} 37. Qxe8+ {[%clk 0:00:12]}  Kh7 {[%clk 0:00:19]} 38. Qxg6+ {[%clk 0:00:12]}  Kh8 {[%clk 0:00:20]} 39. Re8# {[%clk 0:00:13]} 1-0


[Site "https://www.chess.com"]

[Event "Titled Tuesday Blitz April 4 Late 2023"]
[White "Gontcharov, Vladislav"]
[Black "Goltsev, Dmitry"]
[WhiteFideId "4123492"]
[BlackFideId "24176710"]
[WhiteElo "2420"]
[BlackElo "2336"]
[Result "0-1"]
[Round "08"]
[TimeControl "180+2"]
[Date "2023.04.04"]
[WhiteClock "0:00:01"]
[BlackClock "0:00:34"]

1. d4 {[%clk 0:03:00]}  Nf6 {[%clk 0:02:58]} 2. c4 {[%clk 0:03:00]}  e6 {[%clk 0:02:57]} 3. Nc3 {[%clk 0:03:01]}  Bb4 {[%clk 0:02:53]} 4. e3 {[%clk 0:03:01]}  b6 {[%clk 0:02:53]} 5. Bd3 {[%clk 0:02:58]}  Bb7 {[%clk 0:02:53]} 6. Nf3 {[%clk 0:02:58]}  O-O {[%clk 0:02:53]} 7. O-O {[%clk 0:02:57]}  Bxc3 {[%clk 0:02:52]} 8. bxc3 {[%clk 0:02:57]}  d6 {[%clk 0:02:53]} 9. Re1 {[%clk 0:02:52]}  Nbd7 {[%clk 0:02:53]} 10. e4 {[%clk 0:02:51]}  e5 {[%clk 0:02:54]} 11. h3 {[%clk 0:02:45]}  Re8 {[%clk 0:02:48]} 12. Qc2 {[%clk 0:02:40]}  a5 {[%clk 0:02:43]} 13. a4 {[%clk 0:02:36]}  h6 {[%clk 0:02:41]} 14. Rb1 {[%clk 0:02:22]}  Qe7 {[%clk 0:02:37]} 15. Ba3 {[%clk 0:02:06]}  Nh5 {[%clk 0:02:18]} 16. g3 {[%clk 0:01:34]}  f5 {[%clk 0:01:55]} 17. dxe5 {[%clk 0:01:27]}  Nxe5 {[%clk 0:01:55]} 18. Nxe5 {[%clk 0:01:27]}  Qxe5 {[%clk 0:01:55]} 19. Rb5 {[%clk 0:01:27]}  Qe6 {[%clk 0:01:54]} 20. e5 {[%clk 0:01:16]}  dxe5 {[%clk 0:01:46]} 21. Bxf5 {[%clk 0:01:10]}  Qxc4 {[%clk 0:01:37]} 22. Be4 {[%clk 0:01:04]}  Bxe4 {[%clk 0:01:32]} 23. Rxe4 {[%clk 0:00:59]}  Qc6 {[%clk 0:01:24]} 24. Rg4 {[%clk 0:00:44]}  Nf6 {[%clk 0:01:18]} 25. Qg6 {[%clk 0:00:39]}  Qd7 {[%clk 0:01:11]} 26. Rc4 {[%clk 0:00:22]}  Rad8 {[%clk 0:01:01]} 27. Rb1 {[%clk 0:00:16]}  c5 {[%clk 0:00:53]} 28. Rxb6 {[%clk 0:00:14]}  Qd1+ {[%clk 0:00:53]} 29. Kg2 {[%clk 0:00:14]}  Qd5+ {[%clk 0:00:53]} 30. Kh2 {[%clk 0:00:10]}  Qxc4 {[%clk 0:00:51]} 31. Rxf6 {[%clk 0:00:10]}  Rf8 {[%clk 0:00:49]} 32. Rxf8+ {[%clk 0:00:05]}  Rxf8 {[%clk 0:00:50]} 33. Qc2 {[%clk 0:00:05]}  e4 {[%clk 0:00:48]} 34. Bc1 {[%clk 0:00:05]}  Qd3 {[%clk 0:00:47]} 35. Qa2+ {[%clk 0:00:04]}  c4 {[%clk 0:00:47]} 36. Be3 {[%clk 0:00:04]}  Qxc3 {[%clk 0:00:47]} 37. Qb1 {[%clk 0:00:04]}  Qd3 {[%clk 0:00:46]} 38. Qb6 {[%clk 0:00:02]}  c3 {[%clk 0:00:46]} 39. Qe6+ {[%clk 0:00:02]}  Kh8 {[%clk 0:00:44]} 40. Qe7 {[%clk 0:00:02]}  Rg8 {[%clk 0:00:40]} 41. Qc5 {[%clk 0:00:01]}  c2 {[%clk 0:00:40]} 42. Bd4 {[%clk 0:00:01]}  Qd2 {[%clk 0:00:34]} 0-1


[Site "https://www.chess.com"]